bitfinex/quotes_SOLUSD_20241214
["timestamp","ask_amount","ask_price","bid_price","bid_amount"]
[1734213641231,8.0779,217.5,217.44,8.95045048]
[1734213641432,8.0779,217.5,217.44,38.95045048]
[1734213643516,1.5147,217.5,217.45,8.95045048]
[1734213643838,2.2984,217.54,217.47,8.95045048]
[1734213644738,2.2984,217.54,217.47,38.95045048]
[1734213647063,2.7890431,217.61,217.47,38.95045048]
[1734213647064,2.2977,217.6,217.5,8.95045048]
[1734213647669,2.2977,217.6,217.5,30.0]
[1734213648340,2.298,217.58,217.5,30.0]
[1734213649744,8.2104,217.57,217.5,30.0]
[1734213650834,1.6137,217.53,217.33,6.5733]
[1734213651058,6.5888,217.52,217.37,8.95045048]
[1734213651637,20.0,217.49,217.39,30.0]
[1734213652243,22.299,217.49,217.39,30.0]
[1734213653249,22.299,217.49,217.38,9.07594048]
[1734213653754,22.299,217.49,217.39,0.12549]
[1734213654371,20.0,217.45,217.37,30.0]
[1734213654585,20.0,217.44,217.31,8.95045048]
[1734213654853,20.0,217.44,217.32,38.95045048]
[1734213655435,20.0,217.45,217.33,8.95045048]
[1734213655654,2.2995,217.43,217.33,8.95045048]
[1734213656553,2.2995,217.43,217.34,8.95045048]
[1734213656735,2.2995,217.43,217.35,8.95045048]
[1734213657341,2.2995,217.43,217.32,24.027864]
[1734213657546,2.2995,217.43,217.33,8.95045048]
[1734213657745,2.2998,217.41,217.33,8.95045048]
[1734213661048,2.2998,217.41,217.32,0.12549]
[1734213661049,2.2998,217.41,217.32,8.95045048]
[1734213661365,2.2998,217.41,217.33,0.12549]
[1734213662066,6.4606,217.4,217.32,8.95045048]
[1734213662364,6.4606,217.4,217.31,9.07594048]
[1734213663255,6.4606,217.4,217.31,0.25098]
[1734213663564,2.3,217.39,217.29,8.95045048]
[1734213664961,2.3,217.39,217.3,8.95045048]
[1734213665665,2.3,217.39,217.29,0.12549]
[1734213665838,2.3,217.39,217.3,8.95045048]
[1734213667949,2.3,217.39,217.3,0.25098]
[1734213669869,2.3,217.39,217.3,8.95045048]
[1734213670050,2.3,217.39,217.3,0.25098]
[1734213671463,2.3,217.39,217.28,8.95045048]
[1734213671666,6.9,217.39,217.28,0.12549]
[1734213671866,1.6366,217.38,217.28,0.12549]
[1734213672068,1.6366,217.38,217.32,8.95045048]
[1734213672254,1.6366,217.38,217.34,8.95045048]
[1734213674173,1.6366,217.38,217.33,8.95045048]
[1734213676064,1.6366,217.38,217.34,0.25098]
[1734213676249,1.6366,217.38,217.34,9.20143048]
[1734213677161,1.6366,217.38,217.34,0.25098]
[1734213679262,1.6366,217.38,217.33,0.25098]
[1734213679961,1.6366,217.38,217.33,8.95045048]
[1734213682357,1.6366,217.38,217.33,0.25098]
[1734213686084,2.3002,217.37,217.24,20.0]
[1734213686382,2.3002,217.37,217.25,30.0]
[1734213686583,2.3002,217.37,217.25,38.95045048]
[1734213686966,2.3002,217.37,217.26,0.12549]
[1734213687672,2.3002,217.37,217.27,0.12549]
[1734213690383,6.3421,217.36,217.24,8.95045048]
[1734213690586,20.0,217.33,217.24,8.95045048]
[1734213690781,20.0,217.33,217.25,0.25098]
[1734213691484,20.0,217.33,217.25,9.07594048]
[1734213691669,2.3006,217.34,217.29,8.95045048]
[1734213691870,6.3421,217.36,217.3,8.95045048]
[1734213692291,8.6425,217.36,217.27,8.95045048]
[1734213694868,8.6425,217.36,217.28,8.95045048]
[1734213696895,8.6425,217.36,217.27,0.25098]
[1734213697075,8.6425,217.36,217.28,8.95045048]
[1734213697270,8.6425,217.36,217.29,8.95045048]
[1734213699572,6.3421,217.36,217.32,8.95045048]
[1734213699899,1.6366,217.38,217.33,8.95045048]
[1734213700778,1.6366,217.38,217.34,8.95045048]
[1734213700977,1.6366,217.38,217.33,8.95045048]
[1734213701176,1.6366,217.38,217.34,8.95045048]
[1734213701969,6.5524,217.41,217.34,8.95045048]
[1734213702798,6.5524,217.41,217.35,8.95045048]
[1734213707675,3.8531,217.43,217.36,8.95045048]
[1734213707885,8.8516,217.46,217.39,8.95045048]
[1734213708481,6.5524,217.46,217.4,0.25098]
[1734213709812,1.5535,217.48,217.41,8.95045048]
[1734213709998,1.5535,217.48,217.42,9.07594048]
[1734213713480,1.5535,217.48,217.43,9.07594048]
[1734213717692,1.5535,217.48,217.44,0.12549]
[1734213719014,1.5535,217.48,217.38,20.0]
[1734213719217,1.5535,217.48,217.41,0.12549]
[1734213719527,1.5535,217.48,217.41,0.25098]
[1734213720897,1.5535,217.48,217.42,0.12549]
[1734213721316,1.5535,217.48,217.42,0.25098]
[1734213722615,1.5535,217.48,217.43,8.95045048]
[1734213726100,1.5535,217.48,217.42,8.95045048]
[1734213726300,1.5535,217.48,217.4,0.25098]
[1734213726301,6.5524,217.51,217.45,8.95045048]
[1734213728917,6.5524,217.51,217.46,9.07594048]
[1734213729116,6.5524,217.51,217.47,0.12549]
[1734213729526,1.6434,217.54,217.48,8.95045048]
[1734213729732,1.6434,217.54,217.49,8.95045048]
[1734213732626,6.6356,217.56,217.5,9.07594048]
[1734213733029,3.9413,217.59,217.51,9.07594048]
[1734213735212,0.4444609,217.62,217.55,9.07594048]
[1734213735420,0.4444609,217.62,217.57,8.95045048]
[1734213737911,0.4444609,217.62,217.58,0.25098]
[1734213738436,0.4444609,217.62,217.58,9.20143048]
[1734213739253,0.4444609,217.62,217.58,0.25098]
[1734213739408,0.4444609,217.62,217.56,8.95045048]
[1734213739611,0.4444609,217.62,217.57,0.12549]
[1734213740127,0.4444609,217.62,217.57,0.25098]
[1734213742733,0.4444609,217.62,217.57,0.12549]
[1734213743118,0.4444609,217.62,217.56,0.25098]
[1734213745514,0.4444609,217.62,217.57,0.25098]
[1734213746140,0.4444609,217.62,217.57,8.95045048]
[1734213746438,0.4444609,217.62,217.6,8.95045048]
[1734213746632,0.4444609,217.62,217.61,8.95045048]
[1734213748730,0.4444609,217.62,217.61,9.20143048]
[1734213755637,0.4444609,217.62,217.61,32.97831448]
[1734213757749,0.4444609,217.62,217.61,33.66734207]
[1734213758125,0.4444609,217.62,217.61,63.66734207]
[1734213759029,0.4444609,217.62,217.61,77.46734207]
[1734213766623,0.4444609,217.62,217.61,63.66734207]
[1734213766825,0.4444609,217.62,217.61,30.0]
[1734213767022,0.4444609,217.62,217.61,9.07594048]
[1734213768042,0.4444609,217.62,217.61,9.20143048]
[1734213769760,0.4444609,217.62,217.61,32.97831448]
[1734213769962,0.4444609,217.62,217.61,33.66730783]
[1734213770458,0.4444609,217.62,217.61,9.89042383]
[1734213770653,0.4444609,217.62,217.61,9.20143048]
[1734213771043,0.4444609,217.62,217.61,39.20143048]
[1734213771468,0.4444609,217.62,217.55,2.75782924]
[1734213771770,0.4444609,217.62,217.59,8.95045048]
[1734213772065,0.4444609,217.62,217.6,8.95045048]
[1734213772264,0.4444609,217.62,217.61,0.12549]
[1734213772654,0.4444609,217.62,217.61,0.25098]
[1734213772874,0.4444609,217.62,217.61,9.20143048]
[1734213776954,0.4444609,217.62,217.61,9.89051259]
[1734213777289,0.4444609,217.62,217.61,33.66739659]
[1734213778040,0.4444609,217.62,217.61,63.66739659]
[1734213782060,0.3444609,217.62,217.61,63.66739659]
[1734213782674,0.3444609,217.62,217.61,30.0]
[1734213783381,0.3444609,217.62,217.6,8.95045048]
[1734213784262,0.3444609,217.62,217.61,8.95045048]
[1734213785050,0.3444609,217.62,217.6,8.95045048]
[1734213785455,0.3444609,217.62,217.58,8.95045048]
[1734213785961,0.3444609,217.62,217.59,8.95045048]
[1734213787877,0.3444609,217.62,217.58,8.95045048]
[1734213788061,0.3444609,217.62,217.54,8.95045048]
[1734213788466,0.3444609,217.62,217.49,30.0]
[1734213788662,0.3444609,217.62,217.53,8.95045048]
[1734213788870,0.3444609,217.62,217.54,8.95045048]
[1734213789158,0.3444609,217.62,217.58,8.95045048]
[1734213789359,0.3444609,217.62,217.57,8.95045048]
[1734213790280,0.3444609,217.62,217.53,0.25098]
[1734213790484,2.6420609,217.62,217.49,32.80325157]
[1734213790665,2.6420609,217.62,217.54,8.95045048]
[1734213791676,2.6420609,217.62,217.55,9.20143048]
[1734213791902,2.6420609,217.62,217.55,8.95045048]
[1734213792889,2.6420609,217.62,217.51,0.25098]
[1734213793179,2.6420609,217.62,217.54,8.95045048]
[1734213793696,2.6420609,217.62,217.52,8.95045048]
[1734213794762,2.6420609,217.62,217.55,8.95045048]
[1734213795689,2.6420609,217.62,217.54,8.95045048]
[1734213798318,2.6420609,217.62,217.52,8.95045048]
[1734213798618,6.5596,217.61,217.52,8.95045048]
[1734213800198,2.2977,217.6,217.5,0.12549]
[1734213800411,2.2977,217.6,217.48,8.95045048]
[1734213800412,1.6644,217.59,217.48,8.95045048]
[1734213800909,20.0,217.57,217.46,30.0]
[1734213801097,6.4432,217.56,217.39,125.1]
[1734213801298,6.4432,217.56,217.45,0.12549]
[1734213801603,6.4432,217.56,217.45,8.95045048]
[1734213801819,6.4432,217.56,217.46,8.95045048]
[1734213802197,6.4432,217.56,217.49,8.95045048]
[1734213802198,2.2983,217.55,217.49,8.95045048]
[1734213803208,6.4432,217.56,217.5,8.95045048]
[1734213803713,6.4432,217.56,217.49,8.95045048]
[1734213803882,6.4432,217.56,217.49,0.12549]
[1734213804082,6.4432,217.56,217.49,0.25098]
[1734213804806,6.4432,217.56,217.48,0.25098]
[1734213806121,6.4432,217.56,217.49,0.12549]
[1734213818711,6.4432,217.56,217.52,9.07594048]
[1734213818922,1.6644,217.59,217.52,9.07594048]
[1734213820106,1.6644,217.59,217.52,0.12549]
[1734213820306,1.6644,217.59,217.52,30.12549]
[1734213821231,1.6644,217.59,217.53,0.25098]
[1734213821532,1.6644,217.59,217.53,30.25098]
[1734213823808,6.1795,217.61,217.56,0.25098]
[1734213824025,0.3444609,217.62,217.56,9.20143048]
[1734213824211,0.3444609,217.62,217.56,39.20143048]
[1734213831038,0.3444609,217.62,217.58,0.12549]
[1734213831219,0.3444609,217.62,217.58,30.25098]
[1734213831629,0.3444609,217.62,217.59,8.95045048]
[1734213832239,0.3444609,217.62,217.59,38.95045048]
[1734213836116,0.3444609,217.62,217.59,30.0]
[1734213842973,0.3444609,217.62,217.6,0.12549]
[1734213843174,0.3444609,217.62,217.61,9.20143048]
[1734213844083,0.3444609,217.62,217.61,30.25098]
[1734213848755,0.3444609,217.62,217.61,30.0]
[1734213851255,0.3444609,217.62,217.61,30.25098]
[1734213851455,0.3444609,217.62,217.61,39.20143048]
[1734213860885,0.3444609,217.62,217.61,30.25098]
[1734213861083,0.3444609,217.62,217.61,39.20143048]
[1734213861297,0.3444609,217.62,217.61,30.0]
[1734213867119,0.3444609,217.62,217.54,0.25098]
[1734213867393,0.3444609,217.62,217.54,30.25098]
[1734213869295,0.3444609,217.62,217.54,30.0]
[1734213879936,0.3444609,217.62,217.54,38.95045048]
[1734213882735,0.3444609,217.62,217.54,30.0]
[1734213890020,0.3444609,217.62,217.54,38.95045048]
[1734213890341,0.3444609,217.62,217.54,30.0]
[1734213894138,2.2976,217.61,217.54,30.0]
[1734213894465,1.5259,217.6,217.54,30.0]
[1734213894950,23.776884,217.59,217.54,30.0]
[1734213895629,23.776884,217.59,217.49,5.0]
[1734213895829,23.776884,217.59,217.5,30.0]
[1734213896236,2.298,217.58,217.5,30.0]
[1734213901944,2.298,217.58,217.5,38.95045048]
[1734213902126,1.5259,217.6,217.51,8.95045048]
[1734213902332,1.5259,217.6,217.52,30.0]
[1734213905642,1.5259,217.6,217.52,38.95045048]
[1734213907254,1.5259,217.6,217.54,9.20143048]
[1734213907432,1.5259,217.6,217.56,30.0]
[1734213909946,0.3444609,217.62,217.56,30.0]
[1734213910149,0.3444609,217.62,217.57,8.95045048]
[1734213910337,0.3444609,217.62,217.57,38.95045048]
[1734213911338,0.3444609,217.62,217.57,30.0]
[1734213921299,2.6419609,217.62,217.57,30.0]
[1734213924881,2.6419609,217.62,217.54,8.95045048]
[1734213925091,2.6419609,217.62,217.55,30.0]
[1734213931087,0.3444609,217.62,217.57,8.95045048]
[1734213931296,0.3444609,217.62,217.57,38.95045048]
[1734213931594,0.3444609,217.62,217.57,30.0]
[1734213934689,0.3444609,217.62,217.56,9.20143048]
[1734213935506,0.3444609,217.62,217.57,8.95045048]
[1734213935711,0.3444609,217.62,217.6,9.07594048]
[1734213935913,0.3444609,217.62,217.61,8.95045048]
[1734213936611,0.3444609,217.62,217.6,8.95045048]
[1734213936792,0.3444609,217.62,217.61,9.07594048]
[1734213937204,0.3444609,217.62,217.61,9.20143048]
[1734213937728,0.3444609,217.62,217.61,39.20143048]
[1734213942202,0.3444609,217.62,217.61,30.25098]
[1734213942398,0.3444609,217.62,217.61,39.20143048]
[1734213946519,0.3444609,217.62,217.61,30.25098]
[1734213962145,0.3444609,217.62,217.61,39.20143048]
[1734213964517,0.3444609,217.62,217.61,30.25098]
[1734213965842,0.3444609,217.62,217.61,30.0]
[1734213973961,0.3444609,217.62,217.61,39.20143048]
[1734213977834,0.3444609,217.62,217.61,63.66736842]
[1734213978058,0.3444609,217.62,217.61,33.66736842]
[1734213981062,0.3444609,217.62,217.61,63.66736842]
[1734213986075,0.3444609,217.62,217.61,30.0]
[1734213986262,0.3444609,217.62,217.61,38.95045048]
[1734213986456,0.3444609,217.62,217.61,39.07594048]
[1734213987465,0.3444609,217.62,217.61,39.20143048]
[1734213988180,0.3444609,217.62,217.61,30.25098]
[1734213988483,0.3444609,217.62,217.61,39.20143048]
[1734213989657,0.3444609,217.62,217.61,30.0]
[1734213991080,0.3444609,217.62,217.61,39.20143048]
[1734213995663,0.3444609,217.62,217.61,30.25098]
[1734213997674,0.3444609,217.62,217.61,30.0]
[1734214001170,0.3444609,217.62,217.57,8.95045048]
[1734214001697,0.3444609,217.62,217.58,9.07594048]
[1734214002223,0.3444609,217.62,217.59,0.12549]
[1734214003986,0.3444609,217.62,217.6,30.0]
[1734214018705,0.3444609,217.62,217.56,8.95045048]
[1734214019020,0.3444609,217.62,217.57,8.95045048]
[1734214021933,0.3444609,217.62,217.58,30.0]
[1734214041539,0.3444609,217.62,217.6,0.12549]
[1734214041741,0.3444609,217.62,217.6,39.07594048]
[1734214042056,0.3444609,217.62,217.6,30.0]
[1734214047822,0.3444609,217.62,217.55,0.25098]
[1734214048042,0.3444609,217.62,217.55,30.25098]
[1734214065504,0.3444609,217.62,217.55,39.20143048]
[1734214068136,20.3444609,217.62,217.55,39.20143048]
[1734214069216,0.3444609,217.62,217.55,39.20143048]
[1734214069732,0.3444609,217.62,217.55,38.95045048]
[1734214071119,0.3444609,217.62,217.55,30.0]
[1734214075139,22.6419609,217.62,217.55,30.0]
[1734214075543,6.3993,217.61,217.55,30.0]
[1734214075716,1.5795,217.6,217.55,30.0]
[1734214076115,20.0,217.58,217.55,30.0]
[1734214076541,20.0,217.58,217.49,5.0]
[1734214076730,20.0,217.58,217.51,30.0]
[1734214077438,22.298,217.58,217.51,30.0]
[1734214081120,1.5795,217.6,217.52,0.12549]
[1734214081323,1.5795,217.6,217.53,30.0]
[1734214085024,2.2978,217.59,217.53,30.0]
[1734214085655,20.0,217.58,217.53,30.0]
[1734214086447,20.0,217.57,217.53,30.0]
[1734214086653,1.5671,217.55,217.53,25.1667]
[1734214087029,2.2984,217.54,217.53,25.1667]
[1734214087367,2.2984,217.54,217.49,5.0]
[1734214090463,1.5671,217.55,217.49,5.0]
[1734214090792,1.5671,217.55,217.49,13.95045048]
[1734214092874,1.5671,217.55,217.49,5.0]
[1734214094787,3.8654,217.55,217.49,5.0]
[1734214101977,2.298,217.58,217.49,13.95045048]
[1734214102310,1.6282,217.6,217.51,0.12549]
[1734214102676,1.6282,217.6,217.51,0.25098]
[1734214104214,1.6282,217.6,217.51,8.95045048]
[1734214105716,1.6282,217.6,217.54,8.95045048]
[1734214108232,0.3444609,217.62,217.55,0.25098]
[1734214115016,2.6419609,217.62,217.52,0.12549]
[1734214115216,2.6419609,217.62,217.53,0.12549]
[1734214116196,2.6419609,217.62,217.53,30.12549]
[1734214119439,2.6419609,217.62,217.52,0.12549]
[1734214119721,2.6419609,217.62,217.52,0.25098]
[1734214120105,2.6419609,217.62,217.53,0.25098]
[1734214121147,6.0311,217.61,217.51,0.25098]
[1734214121429,7.6002,217.61,217.5,0.12549]
[1734214121728,7.6002,217.61,217.5,0.25098]
[1734214122098,7.6002,217.61,217.5,9.20143048]
[1734214122512,2.2977,217.6,217.51,30.0]
[1734214124318,2.2977,217.6,217.5,9.20143048]
[1734214129737,2.2977,217.6,217.5,0.25098]
[1734214130140,2.2977,217.6,217.5,39.20143048]
[1734214131338,2.2977,217.6,217.5,30.25098]
[1734214131644,2.2977,217.6,217.5,30.0]
[1734214132237,20.0,217.58,217.5,30.0]
[1734214132744,2.2981,217.57,217.5,30.0]
[1734214133214,1.5691,217.56,217.5,30.0]
[1734214133616,1.5691,217.56,217.49,5.0]
[1734214134421,6.0311,217.54,217.49,5.0]
[1734214146246,2.21969732,217.62,217.5,0.12549]
[1734214146449,0.3444609,217.62,217.55,8.95045048]
[1734214146747,2.6420609,217.62,217.49,5.0]
[1734214146932,2.6420609,217.62,217.5,30.0]
[1734214147141,6.4606,217.59,217.49,5.0]
[1734214147636,20.0,217.56,217.49,5.0]
[1734214148261,22.2982,217.56,217.49,5.0]
[1734214153876,20.0,217.56,217.49,13.95045048]
[1734214154046,6.4606,217.59,217.49,13.95045048]
[1734214154745,6.4606,217.59,217.5,8.95045048]
[1734214159038,6.4606,217.59,217.49,5.0]
[1734214159665,6.4606,217.59,217.49,13.95045048]
[1734214161245,6.4606,217.59,217.49,5.0]
[1734214161447,6.4606,217.59,217.49,13.95045048]
[1734214161647,6.4606,217.59,217.49,5.0]
[1734214162062,2.298,217.58,217.49,5.0]
[1734214162448,1.6622,217.57,217.49,5.0]
[1734214163481,2.2982,217.56,217.49,5.0]
[1734214171456,1.6622,217.57,217.5,8.95045048]
[1734214171688,1.6622,217.57,217.52,8.95045048]
[1734214172972,1.6622,217.57,217.51,8.95045048]
[1734214177784,3.9603,217.57,217.49,5.0]
[1734214177986,3.9603,217.57,217.5,30.0]
[1734214178771,3.9603,217.57,217.49,5.0]
[1734214183900,3.9603,217.57,217.49,13.95045048]
[1734214184996,3.9603,217.57,217.49,5.0]
[1734214185784,20.0,217.56,217.49,5.0]
[1734214186583,6.4273,217.54,217.49,5.0]
[1734214186785,20.0,217.5,217.49,5.0]
[1734214187376,21.5378,217.49,217.34,1.85751596]
[1734214187617,2.2992,217.46,217.36,30.0]
[1734214191478,2.2992,217.46,217.34,8.95045048]
[1734214193479,2.2992,217.46,217.35,8.95045048]
[1734214196395,2.2992,217.46,217.33,20.0]
[1734214196602,2.2992,217.46,217.35,8.95045048]
[1734214200285,2.2992,217.46,217.34,38.95045048]
[1734214200486,2.2992,217.46,217.34,30.0]
[1734214200705,2.2994,217.44,217.34,30.0]
[1734214201486,1.6234,217.43,217.34,30.0]
[1734214201690,20.0,217.41,217.29,8.95045048]
[1734214201888,6.2458,217.4,217.3,30.0]
[1734214202689,2.3,217.39,217.3,30.0]
[1734214203017,1.6234,217.36,217.3,30.0]
[1734214203991,2.3004,217.35,217.3,30.0]
[1734214204300,2.3004,217.35,217.27,8.95045048]
[1734214204696,2.3004,217.35,217.26,8.95045048]
[1734214205909,20.0,217.34,217.2,8.95045048]
[1734214206128,6.2458,217.33,217.21,30.0]
[1734214206999,2.3007,217.32,217.21,30.0]
[1734214208724,20.0,217.3,217.21,30.0]
[1734214208947,1.6234,217.29,217.21,30.0]
[1734214209223,1.6234,217.29,217.13,5.76850213]
[1734214209224,20.0,217.25,217.13,8.95045048]
[1734214209521,20.0,217.25,217.15,30.0]
[1734214210215,2.3016,217.24,217.15,30.0]
[1734214210417,1.6234,217.22,217.15,30.0]
[1734214210623,6.2458,217.21,217.15,30.0]
[1734214210810,20.0,217.18,217.15,30.0]
[1734214211209,20.0,217.18,217.07,0.2285417]
[1734214211408,20.0,217.18,217.07,30.2285417]
[1734214211999,2.3023,217.17,217.07,30.2285417]
[1734214212327,20.0,217.1,217.07,30.2285417]
[1734214213029,20.0,217.12,217.07,30.2285417]
[1734214213628,2.3029,217.11,217.07,30.2285417]
[1734214214125,2.3029,217.11,217.07,0.2285417]
[1734214224338,20.0,217.09,217.07,0.2285417]
[1734214224549,20.0,217.09,217.07,4.17e-05]
[1734214224961,20.0,217.09,216.92,1.625]
[1734214224962,8.0148,217.08,216.92,10.57545048]
[1734214225164,20.0,217.05,216.92,10.57545048]
[1734214225465,20.0,217.05,216.93,30.0]
[1734214226262,20.0,217.01,216.93,30.0]
[1734214227245,20.12549,217.0,216.93,30.0]
[1734214227456,28.6574,216.99,216.93,30.0]
[1734214227749,8.6574,216.99,216.89,8.95045048]
[1734214228255,8.6574,216.99,216.88,8.95045048]
[1734214230665,8.6574,216.99,216.85,0.5730026]
[1734214230666,2.3044,216.97,216.85,20.5730026]
[1734214230868,20.0,216.94,216.85,0.5730026]
[1734214231070,20.0,216.94,216.85,30.5730026]
[1734214231260,20.12549,216.93,216.85,30.5730026]
[1734214231457,20.0,216.92,216.85,30.5730026]
[1734214231866,20.0,216.92,216.85,0.5730026]
[1734214232074,2.3051,216.91,216.85,0.5730026]
[1734214233660,2.3047,216.95,216.87,14.03247191]
[1734214233853,2.3047,216.95,216.88,14.03247191]
[1734214234061,2.3034,217.07,216.89,25.607364]
[1734214234265,2.3034,217.07,217.0,14.03247191]
[1734214234460,2.3034,217.07,216.98,14.03247191]
[1734214234663,2.3034,217.07,216.95,14.03247191]
[1734214234869,2.3034,217.07,216.96,14.03247191]
[1734214235557,2.3034,217.07,216.97,14.03247191]
[1734214237063,22.3034,217.07,216.96,14.03247191]
[1734214238175,22.3034,217.07,216.95,14.03247191]
[1734214238969,22.3034,217.07,216.96,14.03247191]
[1734214239578,22.3034,217.07,216.97,14.03247191]
[1734214239794,2.3034,217.07,217.01,14.03247191]
[1734214240166,2.3034,217.07,216.93,0.69124319]
[1734214240167,2.303,217.11,217.02,14.03247191]
[1734214240383,2.303,217.11,217.03,14.03247191]
[1734214240690,2.303,217.11,217.02,14.03247191]
[1734214241186,2.303,217.11,217.01,14.03247191]
[1734214241365,2.303,217.11,217.02,14.03247191]
[1734214242287,20.0,217.1,217.02,14.03247191]
[1734214242662,20.0,217.1,217.01,14.03247191]
[1734214242865,20.0,217.1,216.98,14.03247191]
[1734214242866,2.3031,217.09,216.98,14.03247191]
[1734214243566,2.3031,217.09,217.0,14.03247191]
[1734214244986,2.3031,217.09,217.04,14.03247191]
[1734214245907,2.3031,217.09,217.03,14.03247191]
[1734214246488,2.3031,217.09,217.02,14.03247191]
[1734214247075,2.3031,217.09,217.01,14.03247191]
[1734214254887,2.3028,217.12,217.01,14.03247191]
[1734214255776,2.3028,217.12,217.03,14.03247191]
[1734214256385,2.3028,217.12,217.02,14.03247191]
[1734214256786,2.3028,217.12,217.01,14.03247191]
[1734214257273,2.3028,217.12,216.99,0.12549]
[1734214257478,2.3028,217.12,217.01,14.03247191]
[1734214260391,2.3028,217.12,217.02,14.03247191]
[1734214260592,2.3028,217.12,217.03,14.03247191]
[1734214261784,2.3028,217.12,217.05,14.03247191]
[1734214261988,2.3028,217.12,217.06,14.03247191]
[1734214262303,2.3028,217.12,217.05,14.03247191]
[1734214262499,6.3532,217.13,217.07,14.03247191]
[1734214264195,6.3532,217.13,217.06,14.03247191]
[1734214265978,6.3532,217.13,217.02,0.12549]
[1734214265979,6.3532,217.13,217.07,14.03247191]
[1734214266277,2.3028,217.12,217.02,14.03247191]
[1734214266475,2.3028,217.12,217.03,30.0]
[1734214266903,2.3028,217.12,217.02,14.03247191]
[1734214267393,2.3028,217.12,217.05,14.03247191]
[1734214267796,2.3028,217.12,217.01,14.03247191]
[1734214267999,20.0,217.09,216.92,8.1139]
[1734214268218,20.0,217.09,216.96,14.03247191]
[1734214268423,20.0,217.09,216.97,14.03247191]
[1734214268582,20.0,217.09,217.0,14.03247191]
[1734214269614,20.0,217.1,217.02,14.03247191]
[1734214269818,2.3028,217.12,217.03,14.03247191]
[1734214270376,2.3028,217.12,216.99,24.027864]
[1734214270575,2.3028,217.12,217.01,14.03247191]
[1734214273320,2.3031,217.09,217.0,14.03247191]
[1734214274523,2.3031,217.09,217.01,14.03247191]
[1734214275219,2.3031,217.09,217.02,8.9626623]
[1734214275438,20.0,217.13,217.02,8.9626623]
[1734214275727,20.0,217.12,217.02,8.9626623]
[1734214276512,20.0,217.11,217.02,8.9626623]
[1734214277196,20.0,217.11,217.01,8.9626623]
[1734214277623,20.0,217.13,217.01,8.9626623]
[1734214277922,22.3027,217.13,217.01,8.9626623]
[1734214278510,6.2067,217.12,217.01,8.9626623]
[1734214278892,1.5737,217.11,217.01,8.9626623]
[1734214279099,2.303,217.1,217.01,8.9626623]
[1734214279923,2.303,217.1,216.96,24.027864]
[1734214280096,2.303,217.1,217.01,8.9626623]
[1734214282817,2.303,217.1,217.02,8.9626623]
[1734214284617,2.303,217.1,217.04,8.9626623]
[1734214284808,2.303,217.1,217.05,8.9626623]
[1734214286218,2.303,217.1,217.04,8.9626623]
[1734214287209,2.303,217.1,217.03,8.9626623]
[1734214289118,6.2067,217.12,217.05,8.9626623]
[1734214290242,6.2067,217.12,217.04,8.9626623]
[1734214290521,2.3029,217.11,217.04,8.9626623]
[1734214291114,2.3029,217.11,216.99,23.902374]
[1734214291307,2.3029,217.11,217.04,8.9626623]
[1734214293408,2.3029,217.11,217.02,8.9626623]
[1734214293706,1.503,217.08,217.0,8.9626623]
[1734214294331,3.8063,217.08,217.0,8.9626623]
[1734214297726,3.8063,217.08,217.01,8.9626623]
[1734214298922,3.8063,217.08,217.02,8.9626623]
[1734214301251,3.8063,217.08,217.01,8.9626623]
[1734214304016,6.2067,217.12,217.05,8.9626623]
[1734214304017,8.5096,217.12,217.05,8.9626623]
[1734214304418,8.5096,217.12,217.04,8.9626623]
[1734214307828,8.5096,217.12,216.99,23.776884]
[1734214308031,8.5096,217.12,217.0,8.9626623]
[1734214308419,8.5096,217.12,217.01,8.9626623]
[1734214322165,8.5096,217.12,216.96,44.027864]
[1734214322166,8.5096,217.12,217.04,8.9626623]
[1734214322344,8.5096,217.12,216.99,0.69097217]
[1734214322550,8.5096,217.12,217.01,8.9626623]
[1734214323743,15.72539335,217.12,217.01,8.9626623]
[1734214327285,8.5096,217.12,217.01,8.9626623]